[Event "FIDE World Cup O10-B 2024"]
[Site "Batumi"]
[Date "2024.06.23"]
[Round "1.7"]
[White "Rahul Ramakrishnan"]
[Black "Kazimzade, Mahammad"]
[Result "1-0"]
[ECO "E44"]
[WhiteElo "1838"]
[BlackElo "1594"]
[Annotator "NA RC"]
[PlyCount "63"]
[EventDate "2024.06.23"]
[EventType "swiss"]
[EventCountry "GEO"]
[SourceTitle "playchess.com"]
[Source "ChessBase"]
[SourceQuality "1"]
[TimeControl "5400+30"]

1. d4 {[%emt 0:00:30]} Nf6 {[%emt 0:00:23]} 2. c4 {[%emt 0:00:47]} e6 {[%emt 0:00:16]} 3. Nc3 {[%emt 0:00:54]} Bb4 {[%emt 0:00:49]} 4. e3 {[%emt 0:00:21]} O-O {[%emt 0:00:42]} 5. Nge2 {[%emt 0:01:06]} d5 {[%emt 0:03:02]} 6. a3 {[%emt 0:00:20]} Bxc3+ {[%emt 1:28:18]} 7. Nxc3 {[%emt 0:00:21]} b6 {[%emt 0:00:00]} 8. cxd5 {[%emt 0:00:45]} exd5 {[%emt 0:00:00]} 9. Bd3 {[%emt 0:03:46]} Bb7 {[%emt 0:00:00]} 10. O-O {[%emt 0:03:15]} Nbd7 {[%emt 0:00:00]} 11. b3 {[%emt 0:05:14]} c5 {[%emt 0:00:00]} 12. Bb2 {[%emt 0:07:17]} Re8 {[%emt 0:00:00]} 13. Rc1 {[%emt 0:11:36]} Rc8 {[%emt 0:00:00]} 14. Nb5 {[%emt 0:06:27]} Nf8 {[%emt 0:00:00]} 15. Nxa7 {[%emt 0:55:21]} Ra8 {[%emt 0:00:00]} 16. Nb5 {[%emt 0:00:00]} Ne6 {[%emt 0:05:00]} 17. a4 {[%emt 0:00:00]} Qd7 {[%emt 0:00:00]} 18. dxc5 {[%emt 0:00:00]} Nxc5 {[%emt 0:00:00]} 19. Bxf6 {[%emt 0:00:00]} gxf6 {[%emt 0:00:00]} 20. Bb1 {[%emt 0:00:00]} Re5 {[%emt 0:00:00]} 21. Qc2 {[%emt 0:00:00]} Rh5 {[%emt 0:00:00]} 22. b4 {[%emt 0:00:00]} Nxa4 {[%emt 0:00:00]} 23. Qe2 {[%emt 0:00:00]} Rh4 {[%emt 0:00:00]} 24. Rc7 {[%emt 0:00:00]} Qe8 {[%emt 0:00:00]} 25. Rxb7 {[%emt 0:00:00]} Rxb4 {[%emt 0:00:00]} 26. Qh5 {[%emt 0:00:00]} Rxb1 {[%emt 0:00:00]} 27. Rxb1 {[%emt 0:00:00]} Rd8 {[%emt 0:00:00]} 28. Qg4+ {[%emt 0:00:00]} Kh8 {[%emt 0:00:00]} 29. Qxa4 {[%emt 0:00:00]} Rc8 {[%emt 0:00:00]} 30. h3 {[%emt 0:00:00]} Qc6 {[%emt 0:00:00]} 31. Rxf7 {[%emt 0:00:00]} Qe6 {[%emt 0:00:00]} 32. Qg4 {[%emt 0:00:00]} 1-0

[Event "FIDE World Cup O10-B 2024"]
[Site "Batumi"]
[Date "2024.06.23"]
[Round "1.8"]
[White "Shen, Houlin"]
[Black "Azimov, Yasin"]
[Result "1/2-1/2"]
[ECO "B90"]
[WhiteElo "1583"]
[BlackElo "1833"]
[Annotator "NA RC"]
[PlyCount "77"]
[EventDate "2024.06.23"]
[EventType "swiss"]
[EventCountry "GEO"]
[SourceTitle "playchess.com"]
[Source "ChessBase"]
[SourceQuality "1"]
[TimeControl "5400+30"]

1. e4 {[%emt 0:00:02]} c5 {[%emt 0:00:12]} 2. Nf3 {[%emt 0:00:03]} d6 {[%emt 0:00:25]} 3. d4 {[%emt 0:02:26]} cxd4 {[%emt 0:00:27]} 4. Nxd4 {[%emt 0:00:04]} Nf6 {[%emt 0:00:26]} 5. Nc3 {[%emt 0:00:03]} a6 {[%emt 0:01:00]} 6. Be3 {[%emt 0:01:28]} e5 {[%emt 0:00:29]} 7. Nb3 {[%emt 0:00:19]} Be6 {[%emt 0:00:19]} 8. Qd2 {[%emt 0:01:06]} Nbd7 {[%emt 0:01:19]} 9. f4 {[%emt 0:04:25]} Rc8 {[%emt 0:18:21]} 10. f5 {[%emt 0:09:46]} Bc4 {[%emt 0:00:07]} 11. Bxc4 {[%emt 0:06:20]} Rxc4 {[%emt 0:00:13]} 12. Qd3 {[%emt 0:00:04]} Rc6 {[%emt 0:06:41]} 13. O-O-O {[%emt 0:02:52]} Be7 {[%emt 0:11:10]} 14. h3 {[%emt 0:12:01]} b5 {[%emt 0:08:49]} 15. a3 {[%emt 0:08:41]} Qc7 {[%emt 0:18:31]} 16. g4 {[%emt 0:48:50]} h6 {[%emt 0:00:56]} 17. Rhg1 {[%emt 0:00:00]} Nc5 {[%emt 0:29:35]} 18. Bxc5 {[%emt 0:00:00]} dxc5 {[%emt 0:00:00]} 19. Nd5 {[%emt 0:00:00]} Nxd5 {[%emt 0:00:00]} 20. exd5 {[%emt 0:00:00]} c4 {[%emt 0:00:00]} 21. Qe4 {[%emt 0:00:00]} Rd6 {[%emt 0:02:00]} 22. Nd2 {[%emt 0:03:00]} c3 {[%emt 0:00:00]} 23. Nf3 {[%emt 0:00:00]} cxb2+ {[%emt 0:00:00]} 24. Kxb2 {[%emt 0:00:00]} f6 {[%emt 0:00:00]} 25. Rd3 {[%emt 0:00:00]} b4 {[%emt 0:00:00]} 26. axb4 {[%emt 0:00:00]} Rb6 {[%emt 0:00:00]} 27. Rb3 {[%emt 0:00:00]} O-O {[%emt 0:00:00]} 28. c3 {[%emt 0:00:00]} Rfb8 {[%emt 0:00:00]} 29. Ra1 {[%emt 0:00:00]} Rd8 {[%emt 0:00:00]} 30. Ra5 {[%emt 0:00:00]} Rb5 {[%emt 0:00:00]} 31. Rxa6 {[%emt 0:00:00]} Rbxd5 {[%emt 0:00:00]} 32. c4 {[%emt 0:00:00]} Qb7 {[%emt 0:00:00]} 33. cxd5 {[%emt 0:00:00]} Qxa6 {[%emt 0:00:00]} 34. Ra3 {[%emt 0:00:00]} Qb7 {[%emt 0:00:00]} 35. Kb3 {[%emt 0:01:08]} Rxd5 {[%emt 0:00:00]} 36. Ra7 {[%emt 0:00:31]} Qxa7 {[%emt 0:00:00]} 37. Qxd5+ {[%emt 0:00:15]} Kh7 {[%emt 0:00:53]} 38. Qe4 {[%emt 0:00:11]} Qf2 {[%emt 0:01:09]} 39. h4 {[%emt 0:00:19]} 1/2-1/2

[Event "FIDE World Cup O10-B 2024"]
[Site "Batumi"]
[Date "2024.06.23"]
[Round "1.9"]
[White "Zabelin, Platon"]
[Black "Akramov, Khusan"]
[Result "1/2-1/2"]
[ECO "A45"]
[WhiteElo "1799"]
[BlackElo "1477"]
[Annotator "NA RC"]
[PlyCount "139"]
[EventDate "2024.06.23"]
[EventType "swiss"]
[EventCountry "GEO"]
[SourceTitle "playchess.com"]
[Source "ChessBase"]
[SourceQuality "1"]
[TimeControl "5400+30"]

1. d4 {[%emt 0:00:03]} Nf6 {[%emt 0:00:04]} 2. Bg5 {[%emt 0:00:08]} Ne4 {[%emt 0:00:04]} 3. Bf4 {[%emt 0:00:20]} c5 {[%emt 0:00:04]} 4. f3 {[%emt 0:00:57]} Qa5+ {[%emt 0:00:05]} 5. c3 {[%emt 0:00:32]} Nf6 {[%emt 0:00:04]} 6. d5 {[%emt 0:00:11]} e6 {[%emt 0:00:21]} 7. e4 {[%emt 0:02:06]} exd5 {[%emt 0:00:08]} 8. exd5 {[%emt 0:00:05]} d6 {[%emt 0:00:05]} 9. Qe2+ {[%emt 0:07:26]} Be7 {[%emt 0:02:07]} 10. Bxd6 Nxd5 {[%emt 0:00:09]} 11. Qe5 {[%emt 0:06:49]} Nc6 {[%emt 0:03:17]} 12. Qxd5 {[%emt 0:02:06]} Be6 {[%emt 0:00:09]} 13. Qxc5 {[%emt 0:02:19]} Qxc5 {[%emt 0:00:30]} 14. Bxc5 {[%emt 0:00:11]} Bxc5 {[%emt 0:00:07]} 15. Bb5 {[%emt 0:06:16]} O-O-O {[%emt 0:00:18]} 16. Nd2 {[%emt 0:15:47]} Rhe8 {[%emt 1:30:58]} 17. Ne2 {[%emt 0:16:16]} a6 {[%emt 0:00:30]} 18. Bc4 {[%emt 0:37:58]} Bf2+ {[%emt 0:00:30]} 19. Kxf2 {[%emt 0:00:00]} Rxd2 {[%emt 0:00:30]} 20. Bxe6+ {[%emt 0:00:00]} Rxe6 {[%emt 0:00:00]} 21. Rhe1 {[%emt 0:01:30]} Rxb2 {[%emt 0:00:00]} 22. Kf1 {[%emt 0:00:30]} Rd6 {[%emt 0:00:00]} 23. Nf4 {[%emt 0:00:30]} Rdd2 {[%emt 0:02:00]} 24. Re2 {[%emt 0:00:30]} Rxe2 {[%emt 0:00:00]} 25. Nxe2 {[%emt 0:00:30]} Ne5 {[%emt 0:01:00]} 26. Nd4 {[%emt 0:00:30]} Nc4 {[%emt 0:00:00]} 27. Kg1 {[%emt 0:00:30]} Kd7 {[%emt 0:00:00]} 28. a4 {[%emt 0:00:30]} Nd2 {[%emt 0:01:30]} 29. Rd1 {[%emt 0:00:00]} Rb1 {[%emt 0:00:00]} 30. Rxb1 {[%emt 0:00:00]} Nxb1 {[%emt 0:01:00]} 31. c4 {[%emt 0:01:30]} Nc3 {[%emt 0:00:30]} 32. a5 {[%emt 0:00:30]} Kd6 {[%emt 0:00:30]} 33. Nb3 {[%emt 0:00:30]} Na4 {[%emt 0:00:30]} 34. Kf2 {[%emt 0:00:30]} Nc5 {[%emt 0:00:00]} 35. Nc1 {[%emt 0:00:30]} Nd7 {[%emt 0:01:00]} 36. Nd3 {[%emt 0:00:30]} Nc5 {[%emt 0:00:00]} 37. Nc1 {[%emt 0:00:30]} Na4 {[%emt 0:01:00]} 38. Nd3 {[%emt 0:00:30]} f6 {[%emt 0:00:30]} 39. Ke3 {[%emt 0:00:30]} Nc5 {[%emt 0:00:00]} 40. Nc1 {[%emt 0:00:30]} Ke5 {[%emt 0:00:00]} 41. Nd3+ {[%emt 0:00:30]} Nxd3 {[%emt 0:01:30]} 42. Kxd3 {[%emt 0:00:30]} f5 {[%emt 0:00:30]} 43. Ke3 {[%emt 0:00:30]} g6 {[%emt 0:00:30]} 44. h4 {[%emt 0:00:30]} f4+ {[%emt 0:00:30]} 45. Kd3 {[%emt 0:00:30]} Kd6 {[%emt 0:00:00]} 46. Kd4 {[%emt 0:00:00]} Kc6 {[%emt 0:00:00]} 47. h5 {[%emt 0:01:00]} b6 {[%emt 0:00:00]} 48. axb6 {[%emt 0:00:00]} Kxb6 {[%emt 0:02:00]} 49. hxg6 {[%emt 0:00:00]} hxg6 {[%emt 0:00:00]} 50. Kd5 {[%emt 0:01:30]} a5 {[%emt 0:01:00]} 51. Kd6 {[%emt 0:00:30]} Kb7 {[%emt 0:00:30]} 52. Kd7 {[%emt 0:00:30]} Kb6 {[%emt 0:00:00]} 53. Kd6 {[%emt 0:00:30]} Kb7 {[%emt 0:01:00]} 54. Kc5 {[%emt 0:00:30]} Ka6 {[%emt 0:00:00]} 55. Kd6 {[%emt 0:00:00]} Kb7 {[%emt 0:01:00]} 56. Kc5 {[%emt 0:00:00]} Ka6 {[%emt 0:00:00]} 57. Kd6 {[%emt 0:01:30]} Kb7 {[%emt 0:00:00]} 58. Kd7 {[%emt 0:00:00]} Kb6 59. Kd6 {[%emt 0:01:00]} Kb7 {[%emt 0:00:00]} 60. Kc5 {[%emt 0:00:00]} Ka6 {[%emt 0:00:00]} 61. Kd6 {[%emt 0:00:00]} Kb7 {[%emt 0:00:00]} 62. Kc5 {[%emt 0:00:00]} Ka6 {[%emt 0:00:00]} 63. Kd6 {[%emt 0:00:00]} Kb7 {[%emt 0:00:00]} 64. Kd7 {[%emt 0:00:00]} Kb6 {[%emt 0:00:00]} 65. Kd6 {[%emt 0:00:00]} Kb7 {[%emt 0:00:00]} 66. Kc5 {[%emt 0:00:00]} Ka6 {[%emt 0:00:00]} 67. Kd6 {[%emt 0:00:00]} Kb7 {[%emt 0:00:00]} 68. Kc5 {[%emt 0:00:00]} Ka6 {[%emt 0:00:00]} 69. Kd6 {[%emt 0:00:00]} Kb7 {[%emt 0:00:00]} 70. Kc5 {[%emt 0:05:30]} 1/2-1/2

[Event "FIDE World Cup O10-B 2024"]
[Site "Batumi"]
[Date "2024.06.23"]
[Round "1.10"]
[White "Kvaratskhelia, Giorgi"]
[Black "Muhammad Shayan Noushad Ibrahi"]
[Result "1-0"]
[ECO "B12"]
[WhiteElo "1548"]
[BlackElo "1785"]
[Annotator "NA RC"]
[PlyCount "89"]
[EventDate "2024.06.23"]
[EventType "swiss"]
[EventCountry "GEO"]
[SourceTitle "playchess.com"]
[Source "ChessBase"]
[SourceQuality "1"]
[TimeControl "5400+30"]

1. e4 {[%emt 0:00:02]} c6 {[%emt 0:01:15]} 2. d4 {[%emt 0:00:10]} d5 {[%emt 0:01:30]} 3. e5 {[%emt 0:00:48]} Bf5 {[%emt 0:01:32]} 4. h4 {[%emt 0:00:11]} h5 {[%emt 0:01:34]} 5. Bd3 {[%emt 0:00:28]} Bxd3 {[%emt 0:01:34]} 6. Qxd3 {[%emt 0:00:10]} e6 {[%emt 0:01:27]} 7. Nc3 {[%emt 0:05:28]} Ne7 {[%emt 0:01:30]} 8. Bg5 {[%emt 0:01:35]} Nd7 {[%emt 0:07:47]} 9. O-O-O {[%emt 0:01:55]} Qb6 {[%emt 0:03:22]} 10. Bxe7 {[%emt 0:01:07]} Bxe7 {[%emt 0:04:15]} 11. f4 {[%emt 0:01:20]} c5 {[%emt 0:02:36]} 12. Nge2 {[%emt 0:05:27]} c4 {[%emt 0:01:39]} 13. Qf3 {[%emt 0:00:43]} g6 {[%emt 0:01:19]} 14. g4 {[%emt 0:02:30]} hxg4 {[%emt 0:04:03]} 15. Qxg4 {[%emt 0:00:19]} O-O-O {[%emt 0:03:14]} 16. h5 {[%emt 0:01:51]} gxh5 {[%emt 0:02:16]} 17. Rxh5 {[%emt 0:00:39]} f5 {[%emt 0:02:37]} 18. Qh3 {[%emt 0:04:38]} Rxh5 {[%emt 0:00:58]} 19. Qxh5 {[%emt 0:00:06]} Nf8 {[%emt 0:03:34]} 20. a3 {[%emt 0:01:12]} Qc6 {[%emt 0:06:15]} 21. Rg1 {[%emt 0:02:15]} b5 {[%emt 0:02:35]} 22. Rg7 {[%emt 0:00:39]} Re8 {[%emt 0:01:58]} 23. Qh6 {[%emt 0:02:11]} a5 {[%emt 0:02:36]} 24. Rxe7 {[%emt 0:00:27]} Rxe7 {[%emt 0:03:03]} 25. Qxf8+ {[%emt 0:00:10]} Re8 {[%emt 0:00:09]} 26. Qc5 {[%emt 0:00:37]} Qxc5 {[%emt 0:02:37]} 27. dxc5 {[%emt 0:00:05]} b4 {[%emt 0:01:02]} 28. axb4 {[%emt 0:01:04]} axb4 {[%emt 0:00:11]} 29. Nb5 {[%emt 0:00:21]} Rh8 {[%emt 0:01:40]} 30. Ned4 {[%emt 0:01:38]} Rh1+ {[%emt 0:02:36]} 31. Kd2 {[%emt 0:00:06]} Rh2+ {[%emt 0:01:18]} 32. Ke3 {[%emt 0:00:21]} Rh3+ {[%emt 0:00:36]} 33. Kf2 {[%emt 0:00:08]} Rh2+ {[%emt 0:00:06]} 34. Kg3 {[%emt 0:00:08]} Rd2 {[%emt 0:00:53]} 35. Nxe6 {[%emt 0:01:07]} Rxc2 {[%emt 0:00:10]} 36. Ned4 {[%emt 0:00:03]} Rxb2 {[%emt 0:00:37]} 37. e6 {[%emt 0:00:09]} Rb1 {[%emt 0:02:08]} 38. c6 {[%emt 0:00:27]} Re1 {[%emt 0:00:46]} 39. Kf2 {[%emt 0:00:10]} Rxe6 {[%emt 0:03:09]} 40. Nxe6 {[%emt 0:00:08]} c3 {[%emt 0:01:49]} 41. Nd6+ {[%emt 0:00:37]} Kb8 {[%emt 0:00:35]} 42. c7+ {[%emt 0:00:17]} Ka7 {[%emt 0:00:11]} 43. c8=Q {[%emt 0:00:16]} Kb6 {[%emt 0:00:18]} 44. Qb7+ {[%emt 0:00:08]} Ka5 {[%emt 0:00:11]} 45. Qb5# {[%emt 0:00:07]} 1-0

[Event "FIDE World Cup O10-B 2024"]
[Site "Batumi"]
[Date "2024.06.23"]
[Round "1.11"]
[White "Bergmann, Rafael Antonio"]
[Black "Karthik, Anand T."]
[Result "1/2-1/2"]
[ECO "B41"]
[WhiteElo "1743"]
[BlackElo "2022"]
[Annotator "NA RC"]
[PlyCount "143"]
[EventDate "2024.06.23"]
[EventType "swiss"]
[EventCountry "GEO"]
[SourceTitle "playchess.com"]
[Source "ChessBase"]
[SourceQuality "1"]
[TimeControl "5400+30"]

1. e4 {[%emt 0:00:03]} c5 {[%emt 0:00:16]} 2. Nf3 {[%emt 0:00:07]} e6 {[%emt 0:01:04]} 3. d4 {[%emt 0:00:10]} cxd4 {[%emt 0:00:30]} 4. Nxd4 {[%emt 0:00:07]} a6 {[%emt 0:00:29]} 5. c4 {[%emt 0:00:23]} Qc7 {[%emt 1:30:41]} 6. Nc3 {[%emt 0:00:47]} Nf6 {[%emt 0:00:00]} 7. a3 {[%emt 0:00:46]} Be7 {[%emt 0:00:00]} 8. Be2 {[%emt 0:00:21]} b6 {[%emt 0:00:00]} 9. Be3 {[%emt 0:00:11]} Bb7 {[%emt 0:00:00]} 10. f3 {[%emt 0:00:11]} d6 {[%emt 0:00:00]} 11. O-O {[%emt 0:00:10]} O-O {[%emt 0:00:00]} 12. Qd2 {[%emt 0:00:28]} Nbd7 {[%emt 0:00:00]} 13. Rac1 {[%emt 0:00:32]} Rac8 {[%emt 0:00:00]} 14. Kh1 {[%emt 0:00:17]} Qb8 {[%emt 0:00:00]} 15. Rfd1 {[%emt 0:01:18]} Bd8 {[%emt 0:00:00]} 16. b4 {[%emt 0:00:40]} Bc7 {[%emt 0:00:00]} 17. Nb3 {[%emt 0:00:56]} Rfd8 {[%emt 0:00:00]} 18. Bf1 {[%emt 0:00:25]} d5 {[%emt 0:00:00]} 19. exd5 {[%emt 0:00:41]} exd5 {[%emt 0:00:00]} 20. cxd5 {[%emt 0:00:14]} Bxh2 {[%emt 0:00:00]} 21. Nd4 {[%emt 0:09:20]} Be5 {[%emt 0:00:00]} 22. Nde2 {[%emt 0:01:00]} Qd6 {[%emt 0:00:00]} 23. Bd4 {[%emt 0:07:33]} Bxd4 {[%emt 0:00:00]} 24. Nxd4 {[%emt 0:02:50]} Qe5 {[%emt 0:00:00]} 25. Nde2 {[%emt 0:02:01]} Qh5+ {[%emt 0:00:00]} 26. Kg1 {[%emt 0:00:11]} b5 {[%emt 0:00:00]} 27. Ng3 {[%emt 0:08:00]} Qg6 {[%emt 0:00:00]} 28. Qf4 {[%emt 0:02:02]} Nb6 {[%emt 0:00:00]} 29. Nf5 {[%emt 0:01:29]} Kf8 {[%emt 0:00:00]} 30. Qe5 {[%emt 0:03:48]} Rd7 {[%emt 0:00:00]} 31. Bd3 {[%emt 0:02:03]} Qg5 {[%emt 0:00:00]} 32. Ne4 {[%emt 0:04:42]} Rxc1 {[%emt 0:00:00]} 33. Nxg5 {[%emt 0:00:07]} Rxd1+ {[%emt 0:00:00]} 34. Kh2 {[%emt 0:00:15]} Rxd3 {[%emt 0:00:00]} 35. Qb8+ {[%emt 0:01:36]} Nc8 {[%emt 0:00:00]} 36. Nd6 {[%emt 0:01:05]} Rxd6 {[%emt 0:00:08]} 37. Qxb7 {[%emt 0:00:24]} Ne7 {[%emt 0:06:30]} 38. Qb8+ {[%emt 0:00:18]} Ne8 {[%emt 0:00:10]} 39. Nxh7+ {[%emt 0:00:18]} Kg8 {[%emt 0:00:05]} 40. Qxe8+ {[%emt 0:00:09]} Kxh7 {[%emt 0:00:05]} 41. Qxe7 {[%emt 0:00:09]} R6xd5 {[%emt 0:00:43]} 42. Qxf7 {[%emt 0:00:12]} Rg5 {[%emt 0:01:22]} 43. Qf4 {[%emt 0:01:40]} Rdd5 {[%emt 0:00:54]} 44. Qe4+ {[%emt 0:00:51]} Kh6 {[%emt 0:00:53]} 45. Qe6+ {[%emt 0:00:51]} g6 {[%emt 0:00:36]} 46. g4 {[%emt 0:00:33]} Rge5 {[%emt 0:01:23]} 47. Qg8 {[%emt 0:00:18]} Kg5 {[%emt 0:04:55]} 48. Qf8 {[%emt 0:01:21]} Re1 {[%emt 0:02:24]} 49. Kg3 {[%emt 0:02:28]} Rg1+ {[%emt 0:00:11]} 50. Kf2 {[%emt 0:00:13]} Rgd1 {[%emt 0:00:57]} 51. Qe7+ {[%emt 0:00:19]} Kh6 {[%emt 0:00:08]} 52. Qe3+ {[%emt 0:03:05]} Kg7 {[%emt 0:00:55]} 53. Qa7+ {[%emt 0:00:12]} Kh6 {[%emt 0:00:08]} 54. Qxa6 {[%emt 0:00:12]} R5d2+ {[%emt 0:00:40]} 55. Ke3 {[%emt 0:00:14]} Rd3+ {[%emt 0:00:04]} 56. Kf4 {[%emt 0:00:15]} Rd4+ {[%emt 0:00:16]} 57. Kg3 {[%emt 0:00:13]} Rd5 {[%emt 0:01:01]} 58. Qa8 {[%emt 0:00:27]} Kh7 {[%emt 0:00:28]} 59. Qa7+ {[%emt 0:00:43]} Kh6 {[%emt 0:00:28]} 60. Qb8 {[%emt 0:01:05]} Kh7 {[%emt 0:00:16]} 61. Qc7+ {[%emt 0:00:15]} Kh6 {[%emt 0:00:15]} 62. Qf4+ {[%emt 0:00:09]} Kg7 {[%emt 0:00:10]} 63. Qc7+ {[%emt 0:00:09]} Kh6 {[%emt 0:00:07]} 64. Qb7 {[%emt 0:00:04]} Rg1+ {[%emt 0:01:14]} 65. Kf2 {[%emt 0:00:12]} Rgd1 {[%emt 0:00:09]} 66. Qb8 {[%emt 0:01:03]} Kg5 {[%emt 0:00:57]} 67. Qa7 {[%emt 0:01:10]} Kf6 {[%emt 0:00:57]} 68. Qb6+ {[%emt 0:00:16]} Kg7 {[%emt 0:00:26]} 69. Qc7+ {[%emt 0:00:18]} Kh6 {[%emt 0:00:32]} 70. Qf4+ {[%emt 0:00:23]} Kg7 {[%emt 0:00:13]} 71. Qc7+ {[%emt 0:00:08]} Kh6 {[%emt 0:00:08]} 72. Qf4+ {[%emt 0:00:11]} 1/2-1/2

[Event "FIDE World Cup O10-B 2024"]
[Site "Batumi"]
[Date "2024.06.24"]
[Round "2.1"]
[White "Modith Aaroh Mutyalapati"]
[Black "Shogdzhiev, Roman"]
[Result "1-0"]
[ECO "B86"]
[WhiteElo "1866"]
[BlackElo "2060"]
[Annotator "NA RC"]
[PlyCount "71"]
[EventDate "2024.06.23"]
[EventType "swiss"]
[EventCountry "GEO"]
[SourceTitle "playchess.com"]
[Source "ChessBase"]
[SourceQuality "1"]
[TimeControl "5400+30"]

1. e4 {[%emt 0:00:02]} c5 {[%emt 0:00:01]} 2. Nf3 {[%emt 0:00:10]} d6 {[%emt 0:00:00]} 3. d4 {[%emt 0:00:08]} cxd4 {[%emt 0:00:03]} 4. Nxd4 {[%emt 1:32:10]} Nf6 5. Nc3 {[%emt 0:00:00]} a6 {[%emt 0:00:10]} 6. Bc4 {[%emt 0:00:00]} e6 {[%emt 0:00:07]} 7. Bb3 {[%emt 0:00:00]} Nbd7 {[%emt 0:00:04]} 8. f4 {[%emt 0:00:00]} Nc5 {[%emt 0:00:51]} 9. f5 {[%emt 0:00:00]} Be7 {[%emt 0:05:49]} 10. Qf3 {[%emt 0:00:00]} O-O {[%emt 0:15:38]} 11. Be3 {[%emt 0:00:00]} e5 {[%emt 0:19:50]} 12. Nde2 {[%emt 0:00:00]} b5 {[%emt 0:02:13] B86: Sicilian Scheveningen/Najdorf: 6 Bc4, without early ...b5.} 13. Rd1 {[%emt 0:00:00]} Nxb3 {[%emt 0:00:13]} 14. axb3 {[%emt 0:00:00]} b4 {[%emt 0:00:17]} 15. Nd5 {[%emt 0:00:00]} Nxd5 {[%emt 0:00:41]} 16. exd5 {[%emt 0:00:00]} g6 {[%emt 0:13:45]} (16... a5 $11) 17. Ng3 {[%emt 0:00:00]} Kg7 {[%emt 0:08:06]} (17... Bg5 $11) 18. O-O {[%emt 0:00:00]} h5 {[%emt 0:00:46]} 19. Kh1 {[%emt 0:00:00]} h4 {[%emt 0:03:41] [#]} 20. Bb6 $1 {[%emt 0:00:00]} Qxb6 {[%emt 0:10:39]} 21. f6+ {[%emt 0:00:00]} Kh6 {[%emt 0:00:45]} 22. fxe7 {[%emt 0:00:00]} Rg8 {[%emt 0:01:29]} 23. Qxf7 {[%emt 0:00:00]} Bg4 {[%emt 0:00:05]} 24. Ne4 {[%emt 0:00:00]} Bxd1 {[%emt 0:02:53]} 25. Nf6 {[%emt 0:00:00]} Rh8 {[%emt 0:02:42]} 26. Rxd1 {[%emt 0:00:00]} Qb5 {[%emt 0:00:58]} 27. Rd3 {[%emt 0:00:00]} Rac8 {[%emt 0:03:29]} 28. Ng4+ {[%emt 0:00:00]} (28. e8=B $2 {loses.} Qxd3 29. Ng4+ Kh5 $19) 28... Kh5 {[%emt 0:02:26]} 29. Rh3 {[%emt 0:00:00]} Qe2 $18 {[%emt 0:01:18]} 30. Ne3 {[%emt 0:00:00]} Qe1+ {[%emt 0:04:13]} 31. Nf1 {[%emt 0:00:00]} Rxc2 {[%emt 0:00:48]} 32. Qf6 {[%emt 0:00:00]} Rg8 {[%emt 0:01:45]} 33. Rf3 {[%emt 0:00:00]} Qe2 {[%emt 0:00:43]} 34. Ne3 {[%emt 0:00:00]} Rc1+ {[%emt 0:00:08]} 35. Nf1 {[%emt 0:00:00]} Rc2 {[%emt 0:00:04]} 36. Ne3 {[%emt 0:00:00]} 1-0

[Event "FIDE World Cup O10-B 2024"]
[Site "Batumi"]
[Date "2024.06.24"]
[Round "2.2"]
[White "Xia, Joshua"]
[Black "Rahul Ramakrishnan"]
[Result "1-0"]
[ECO "C06"]
[WhiteElo "2060"]
[BlackElo "1838"]
[Annotator "NA RC"]
[PlyCount "105"]
[EventDate "2024.06.23"]
[EventType "swiss"]
[EventCountry "GEO"]
[SourceTitle "playchess.com"]
[Source "ChessBase"]
[SourceQuality "1"]
[TimeControl "5400+30"]

1. e4 {[%emt 0:00:01]} e6 {[%emt 0:00:21]} 2. d4 {[%emt 0:00:05]} d5 {[%emt 0:00:43]} 3. Nd2 {[%emt 0:00:06]} Nf6 {[%emt 0:00:30]} 4. e5 {[%emt 0:00:08]} Nfd7 {[%emt 0:00:26]} 5. Bd3 {[%emt 0:00:08]} c5 {[%emt 0:01:24]} 6. c3 {[%emt 0:00:03]} b6 {[%emt 0:00:14]} 7. Nh3 {[%emt 0:00:08]} Ba6 {[%emt 0:01:12]} 8. Bxa6 {[%emt 0:00:07]} Nxa6 {[%emt 0:00:13]} 9. O-O {[%emt 0:00:15]} Be7 {[%emt 0:06:08] C06: French Tarrasch: 3...Nf6 4 e5 Nfd7 5 Bd3 main lines.} 10. Qg4 {[%emt 0:00:47]} g6 {[%emt 0:03:59]} 11. Nf3 {[%emt 0:02:19]} h6 {[%emt 0:02:55]} 12. Nf4 {[%emt 0:11:14]} h5 {[%emt 0:03:56]} 13. Qh3 {[%emt 0:00:07]} Nc7 {[%emt 0:06:38]} 14. Be3 {[%emt 0:13:42]} Qc8 {[%emt 0:03:43]} 15. b3 {[%emt 0:02:04]} Qb7 {[%emt 0:08:01]} (15... a5 $14) 16. a4 {[%emt 0:11:47]} O-O-O {[%emt 0:01:06]} (16... Kf8 $142) 17. dxc5 {[%emt 0:07:41]} ({White should try} 17. Nd3 $16) 17... bxc5 {[%emt 0:02:06]} 18. Nd3 $1 {[%emt 0:00:49]} Qxb3 {[%emt 0:02:03]} 19. Bg5 {[%emt 0:09:24]} Bxg5 {[%emt 0:01:23]} 20. Nxg5 {[%emt 0:00:32]} Rdf8 {[%emt 0:02:33]} 21. Qe3 {[%emt 0:04:33]} Qb6 $14 {[%emt 0:06:04]} 22. a5 {[%emt 0:01:06]} Qc6 {[%emt 0:00:36]} 23. Rfb1 {[%emt 0:05:32]} c4 {[%emt 0:01:46]} 24. Nf4 {[%emt 0:22:13]} Qc5 {[%emt 0:01:58]} 25. Qe2 {[%emt 0:00:40]} Nb5 {[%emt 0:02:13]} 26. a6 {[%emt 0:02:29]} Nc7 {[%emt 0:05:17]} 27. Rb7 {[%emt 0:01:16]} Nb8 {[%emt 0:06:41]} 28. Qb2 {[%emt 0:01:47]} Kd7 {[%emt 0:03:19]} 29. h4 {[%emt 0:00:20]} Ke7 {[%emt 0:02:11]} 30. Qa3 {[%emt 0:01:25]} Qxa3 {[%emt 0:01:59]} 31. Rxc7+ {[%emt 0:00:23]} Kd8 {[%emt 0:02:38]} 32. Nfxe6+ {[%emt 0:00:11]} fxe6 {[%emt 0:00:09]} 33. Nxe6+ {[%emt 0:00:04]} Ke8 {[%emt 0:00:30]} 34. Ng7+ {[%emt 0:00:08]} Kd8 {[%emt 0:00:20]} 35. Ne6+ {[%emt 0:00:01]} Ke8 {[%emt 0:00:08]} 36. Rxa3 {[%emt 0:00:03]} Rfg8 {[%emt 0:01:01]} 37. Ra5 {[%emt 0:01:18]} Nd7 {[%emt 0:01:13]} 38. Rxd5 {[%emt 0:00:25]} Rh7 {[%emt 0:00:37]} 39. Rxa7 {[%emt 0:01:47]} Re7 {[%emt 0:00:49]} 40. Ra8+ {[%emt 0:00:44]} Kf7 {[%emt 0:00:13]} 41. Ng5+ {[%emt 0:00:09]} Kg7 {[%emt 0:00:16]} 42. Ra7 {[%emt 0:00:07]} Rd8 {[%emt 0:02:14]} 43. e6 {[%emt 0:00:08]} Kh6 {[%emt 0:02:44]} 44. Nf7+ {[%emt 0:00:26]} Rxf7 {[%emt 0:01:13]} 45. exf7 {[%emt 0:00:05]} g5 {[%emt 0:00:55]} 46. Raxd7 {[%emt 0:00:12]} Rf8 {[%emt 0:00:13]} 47. a7 {[%emt 0:00:31]} g4 {[%emt 0:00:18]} 48. Rd8 {[%emt 0:00:07]} g3 {[%emt 0:00:19]} 49. Rxf8 {[%emt 0:00:25]} gxf2+ {[%emt 0:00:06]} 50. Kxf2 {[%emt 0:00:16]} Kg7 {[%emt 0:00:17]} 51. a8=Q {[%emt 0:00:06]} Kh7 {[%emt 0:00:20]} 52. Rc8 {[%emt 0:00:10]} Kg6 {[%emt 0:00:09]} 53. f8=Q {[%emt 0:00:11]} 1-0